[Event "21st Indian-chT Women 2023-24"]
[Site "Dharamsala"]
[Date "2024.03.30"]
[Round "2.2"]
[White "Marium Fatima"]
[Black "Gomes, Mary Ann"]
[Result "0-1"]
[ECO "A30"]
[WhiteElo "1903"]
[BlackElo "2322"]
[Annotator "RC"]
[PlyCount "136"]
[EventDate "2024.03.28"]
[EventType "team-tourn"]
[EventCountry "IND"]
[SourceTitle "playchess.com"]
[Source "ChessBase"]
[SourceQuality "1"]
[TimeControl "5400+30"]

1. d4 {[%emt 0:00:04]} Nf6 {[%emt 0:00:20]} 2. c4 {[%emt 0:00:05]} e6 {[%emt 0:01:01]} 3. Nf3 {[%emt 0:00:43]} c5 {[%emt 0:00:11]} 4. g3 {[%emt 0:01:15]} b6 {[%emt 0:00:07]} 5. Bg2 {[%emt 0:00:21]} Bb7 {[%emt 0:00:06]} 6. O-O {[%emt 0:00:58]} cxd4 {[%emt 0:00:46]} 7. Nxd4 {[%emt 0:00:38]} Bxg2 {[%emt 0:00:09]} 8. Kxg2 {[%emt 0:00:03]} Qc8 {[%emt 0:00:18]} 9. b3 {[%emt 0:02:10]} Be7 {[%emt 0:00:22]} 10. Ba3 {[%emt 0:01:50]} Bxa3 {[%emt 0:00:13]} 11. Nxa3 {[%emt 0:00:04]} a6 {[%emt 0:00:06]} 12. e3 {[%emt 0:03:25]} Nc6 {[%emt 0:01:31]} 13. Nxc6 {[%emt 0:04:45]} Qxc6+ {[%emt 0:01:01]} 14. Qf3 {[%emt 0:00:08]} Ke7 {[%emt 0:00:34]} 15. Nc2 {[%emt 0:02:29]} Qxf3+ {[%emt 0:02:43]} 16. Kxf3 {[%emt 0:00:03]} Rhc8 {[%emt 0:00:07]} 17. Nd4 {[%emt 0:01:04]} g6 {[%emt 0:00:18]} 18. Ke2 {[%emt 0:01:03]} Rc5 {[%emt 0:03:45]} 19. h4 {[%emt 0:04:51]} b5 {[%emt 0:04:26]} 20. cxb5 {[%emt 0:03:37]} axb5 {[%emt 0:00:12]} 21. b4 {[%emt 0:04:06]} Rc4 {[%emt 0:14:48]} 22. a3 {[%emt 0:01:36]} Rb8 {[%emt 0:00:06]} 23. Kd3 {[%emt 0:00:53]} d5 {[%emt 0:00:59]} 24. Rfc1 {[%emt 0:04:48]} Kd6 {[%emt 0:05:19]} 25. a4 {[%emt 0:06:30]} Rxc1 {[%emt 0:00:51]} 26. Rxc1 {[%emt 0:00:02]} bxa4 {[%emt 0:00:07]} 27. Rc6+ {[%emt 0:00:05]} Kd7 {[%emt 0:00:21]} 28. Ra6 {[%emt 0:00:02]} Rxb4 {[%emt 0:01:40]} 29. Ra7+ {[%emt 0:00:04]} Kd6 {[%emt 0:14:14]} 30. Kc3 {[%emt 0:06:15]} Rc4+ {[%emt 0:01:18]} 31. Kb2 {[%emt 0:00:02]} Nd7 {[%emt 0:03:52]} 32. Nb5+ {[%emt 0:04:02]} Ke7 {[%emt 0:00:05]} 33. Nc3 {[%emt 0:02:18]} a3+ {[%emt 0:05:15]} 34. Kb3 {[%emt 0:02:39]} Rc8 {[%emt 0:03:48]} 35. Nb5 {[%emt 0:04:29]} Rb8 {[%emt 0:00:06]} 36. Kb4 {[%emt 0:00:04]} a2 {[%emt 0:00:07]} 37. Rxa2 {[%emt 0:00:08]} Ne5 {[%emt 0:00:07]} 38. Ra7+ {[%emt 0:03:31]} Kf6 {[%emt 0:00:08]} 39. Kc5 {[%emt 0:00:59]} Rc8+ {[%emt 0:03:05]} 40. Kb6 {[%emt 0:04:00]} Rc2 {[%emt 0:01:24]} 41. g4 {[%emt 0:12:24]} Rxf2 {[%emt 0:02:40]} 42. Nd6 {[%emt 0:00:52]} Nc4+ {[%emt 0:04:22]} 43. Nxc4 {[%emt 0:00:18]} dxc4 {[%emt 0:00:05]} 44. Kc5 {[%emt 0:01:08]} c3 {[%emt 0:01:13]} 45. Kd4 {[%emt 0:00:30]} c2 {[%emt 0:00:16]} 46. Rc7 {[%emt 0:00:25]} Rg2 {[%emt 0:02:45]} 47. g5+ {[%emt 0:00:08]} Kg7 {[%emt 0:00:05]} 48. e4 {[%emt 0:00:29]} Rh2 {[%emt 0:00:10]} 49. Rc8 {[%emt 0:01:06]} h6 {[%emt 0:02:46]} 50. Ke5 {[%emt 0:02:58]} h5 {[%emt 0:03:07]} 51. Kd4 {[%emt 0:00:19]} Rxh4 {[%emt 0:00:06]} 52. Rxc2 {[%emt 0:00:03]} Rg4 {[%emt 0:00:05]} 53. Rc5 {[%emt 0:02:50]} h4 {[%emt 0:00:05]} 54. Ke3 {[%emt 0:00:09]} h3 {[%emt 0:00:08]} 55. Rc2 {[%emt 0:00:06]} Rxg5 {[%emt 0:00:13]} 56. Rh2 {[%emt 0:00:15]} Rh5 {[%emt 0:00:26]} 57. Kf3 {[%emt 0:00:04]} f5 {[%emt 0:00:42]} 58. e5 {[%emt 0:00:41]} g5 {[%emt 0:00:15]} 59. Kg3 {[%emt 0:00:05]} f4+ {[%emt 0:00:22]} 60. Kg4 {[%emt 0:00:48]} Kg6 {[%emt 0:00:08]} 61. Rh1 {[%emt 0:00:20]} h2 {[%emt 0:01:40]} 62. Kf3 {[%emt 0:00:08]} Kf5 {[%emt 0:00:20]} 63. Kg2 {[%emt 0:00:50]} g4 {[%emt 0:00:13]} 64. Kf2 {[%emt 0:00:11]} Kxe5 {[%emt 0:00:39]} 65. Kg2 {[%emt 0:00:06]} Kf5 {[%emt 0:00:11]} 66. Kf2 {[%emt 0:00:12]} e5 {[%emt 0:00:05]} 67. Kf1 {[%emt 0:00:32]} f3 {[%emt 0:00:16]} 68. Kf2 {[%emt 0:00:44]} Kf4 {[%emt 0:00:07]} 0-1

[Event "21st Indian-chT Women 2023-24"]
[Site "Dharamsala"]
[Date "2024.03.30"]
[Round "2.3"]
[White "Soumya, Swaminathan"]
[Black "Garima Gaurav"]
[Result "1-0"]
[ECO "C88"]
[WhiteElo "2259"]
[BlackElo "1786"]
[Annotator "ChessBase"]
[PlyCount "87"]
[EventDate "2024.03.28"]
[EventType "team-tourn"]
[EventCountry "IND"]
[SourceTitle "playchess.com"]
[Source "ChessBase"]
[SourceQuality "1"]
[TimeControl "5400+30"]

1. e4 {[%emt 0:00:03]} e5 {[%emt 0:00:08]} 2. Nf3 {[%emt 0:00:05]} Nc6 {[%emt 0:00:11]} 3. Bb5 {[%emt 0:00:05]} a6 {[%emt 0:00:12]} 4. Ba4 {[%emt 0:00:03]} Nf6 {[%emt 0:00:08]} 5. O-O {[%emt 0:00:05]} Be7 {[%emt 0:01:06]} 6. d3 {[%emt 0:00:11]} b5 {[%emt 0:00:15]} 7. Bb3 {[%emt 0:00:03]} d6 {[%emt 0:00:22]} 8. c3 {[%emt 0:00:11]} O-O {[%emt 0:01:26]} 9. a4 {[%emt 0:00:09]} Bb7 {[%emt 0:04:35]} 10. Re1 {[%emt 0:13:44]} Na5 {[%emt 0:05:58]} 11. Ba2 {[%emt 0:00:03]} c5 {[%emt 0:01:30]} 12. Bg5 {[%emt 0:05:11]} h6 {[%emt 0:12:32]} 13. Bh4 {[%emt 0:09:27]} Re8 {[%emt 0:06:34]} 14. Na3 {[%emt 0:18:13]} b4 {[%emt 0:03:57]} 15. Nc4 {[%emt 0:08:08]} Nxc4 {[%emt 0:01:52]} 16. Bxc4 {[%emt 0:00:04]} a5 {[%emt 0:00:48]} 17. Qb3 {[%emt 0:00:37]} Rf8 {[%emt 0:01:14]} 18. Bxf6 {[%emt 0:04:27]} Bxf6 {[%emt 0:00:46]} 19. Nd2 {[%emt 0:04:17]} Qe7 {[%emt 0:09:40]} 20. Nf1 {[%emt 0:00:36]} Bg5 {[%emt 0:01:25]} 21. Rad1 {[%emt 0:11:02]} Kh8 {[%emt 0:04:24]} 22. Ne3 {[%emt 0:03:41]} g6 {[%emt 0:03:08]} 23. Nd5 {[%emt 0:02:12]} Qd8 {[%emt 0:02:59]} 24. d4 {[%emt 0:00:52]} Bxd5 {[%emt 0:03:33]} 25. Bxd5 {[%emt 0:01:25]} Rb8 {[%emt 0:00:16]} 26. dxe5 {[%emt 0:04:52]} dxe5 {[%emt 0:01:26]} 27. cxb4 {[%emt 0:05:49]} Rxb4 {[%emt 0:00:50]} 28. Qc3 {[%emt 0:00:03]} Qc7 {[%emt 0:01:33]} 29. b3 {[%emt 0:01:06]} Kh7 {[%emt 0:10:35]} 30. Bc4 {[%emt 0:00:29]} f6 {[%emt 0:05:22]} 31. Rd5 {[%emt 0:01:26]} Rd8 {[%emt 0:02:17]} 32. Rxc5 {[%emt 0:00:47]} Qxc5 {[%emt 0:01:29]} 33. Bg8+ {[%emt 0:00:03]} Kxg8 {[%emt 0:00:06]} 34. Qxc5 {[%emt 0:00:03]} Bd2 {[%emt 0:02:21]} 35. Rd1 {[%emt 0:03:46]} Rbd4 {[%emt 0:03:20]} 36. Qe7 {[%emt 0:00:46]} Bb4 {[%emt 0:00:21]} 37. Qxd8+ {[%emt 0:00:05]} Rxd8 {[%emt 0:00:11]} 38. Rxd8+ {[%emt 0:00:02]} Kf7 {[%emt 0:00:09]} 39. g4 {[%emt 0:00:52]} Bc3 {[%emt 0:00:39]} 40. Rd7+ {[%emt 0:00:47]} Kf8 {[%emt 0:00:30]} 41. Kf1 {[%emt 0:00:25]} Bd4 {[%emt 0:00:22]} 42. f4 {[%emt 0:00:43]} Be3 {[%emt 0:00:12]} 43. fxe5 {[%emt 0:00:26]} fxe5 {[%emt 0:00:05]} 44. Rd5 {[%emt 0:00:03]} 1-0

[Event "21st Indian-chT Women 2023-24"]
[Site "Dharamsala"]
[Date "2024.03.30"]
[Round "2.4"]
[White "Adiba Ullah"]
[Black "Salonika, Saina"]
[Result "0-1"]
[ECO "A48"]
[WhiteElo "1521"]
[BlackElo "2096"]
[Annotator "ChessBase"]
[PlyCount "92"]
[EventDate "2024.03.28"]
[EventType "team-tourn"]
[EventCountry "IND"]
[SourceTitle "playchess.com"]
[Source "ChessBase"]
[SourceQuality "1"]
[TimeControl "5400+30"]

1. d4 {[%emt 0:00:06]} Nf6 {[%emt 0:00:09]} 2. Nf3 {[%emt 0:00:17]} g6 {[%emt 0:00:05]} 3. Bf4 {[%emt 0:00:24]} Bg7 {[%emt 0:00:07]} 4. h3 {[%emt 0:00:58]} d6 {[%emt 0:00:21]} 5. e3 {[%emt 0:00:24]} O-O {[%emt 0:00:21]} 6. Bd3 {[%emt 0:00:52]} Nfd7 {[%emt 0:07:12]} 7. c3 {[%emt 0:01:44]} e5 {[%emt 0:02:10]} 8. Bg5 {[%emt 0:03:02]} f6 {[%emt 0:04:27]} 9. Bh4 {[%emt 0:05:01]} Kh8 {[%emt 0:17:48]} 10. O-O {[%emt 0:01:52]} g5 {[%emt 0:02:03]} 11. Bg3 {[%emt 0:00:28]} f5 {[%emt 0:03:53]} 12. e4 {[%emt 0:02:45]} f4 {[%emt 0:04:38]} 13. Bh2 {[%emt 0:00:11]} Nb6 {[%emt 0:07:17]} 14. Nbd2 {[%emt 0:01:05]} Qf6 {[%emt 0:10:43]} 15. d5 {[%emt 0:02:36]} h5 {[%emt 0:01:06]} 16. Kh1 {[%emt 0:08:08]} g4 {[%emt 0:02:41]} 17. Ng1 {[%emt 0:02:00]} Qg6 {[%emt 0:03:17]} 18. Be2 {[%emt 0:04:28]} Bf6 {[%emt 0:07:23]} 19. g3 {[%emt 0:08:29]} f3 {[%emt 0:00:04]} 20. Bb5 {[%emt 0:01:20]} c6 {[%emt 0:01:53]} 21. dxc6 {[%emt 0:01:11]} Nxc6 {[%emt 0:00:49]} 22. h4 {[%emt 0:04:53]} Be6 {[%emt 0:00:55]} 23. Re1 {[%emt 0:07:55]} Rad8 {[%emt 0:00:56]} 24. Qc2 {[%emt 0:06:53]} d5 {[%emt 0:06:41]} 25. Bd3 {[%emt 0:01:40]} d4 {[%emt 0:00:03]} 26. c4 {[%emt 0:05:05]} Nb4 {[%emt 0:00:10]} 27. Qb3 {[%emt 0:01:10]} a5 {[%emt 0:00:48]} 28. a3 {[%emt 0:02:18]} Nxd3 {[%emt 0:00:10]} 29. Qxd3 {[%emt 0:01:02]} Rc8 {[%emt 0:01:03]} 30. Rac1 {[%emt 0:01:43]} Be7 {[%emt 0:03:21]} 31. Rc2 {[%emt 0:07:29]} Qf7 {[%emt 0:03:05]} 32. Rec1 {[%emt 0:00:49]} Nd7 {[%emt 0:00:13]} 33. Qb3 {[%emt 0:03:41]} Nc5 {[%emt 0:00:06]} 34. Qb5 {[%emt 0:01:59]} a4 {[%emt 0:00:11]} 35. b4 {[%emt 0:04:24]} axb3 {[%emt 0:00:08]} 36. Nxb3 {[%emt 0:00:18]} Bd7 {[%emt 0:00:43]} 37. Qb6 {[%emt 0:03:12]} Nxb3 {[%emt 0:00:12]} 38. Qxb3 {[%emt 0:00:19]} b5 {[%emt 0:00:04]} 39. Qd3 {[%emt 0:03:37]} bxc4 {[%emt 0:00:12]} 40. Qd2 {[%emt 0:00:22]} Kg7 {[%emt 0:06:45]} 41. Ra1 {[%emt 0:00:51]} c3 {[%emt 0:00:25]} 42. Qd3 {[%emt 0:00:30]} Ba4 {[%emt 0:00:27]} 43. Rcc1 {[%emt 0:00:25]} Qc4 {[%emt 0:00:27]} 44. Qxc4 {[%emt 0:00:18]} Rxc4 {[%emt 0:00:03]} 45. Ra2 {[%emt 0:00:18]} d3 {[%emt 0:00:07]} 46. Raa1 {[%emt 0:00:12]} d2 {[%emt 0:00:05]} 0-1

[Event "21st Indian-chT Women 2023-24"]
[Site "Dharamsala"]
[Date "2024.03.30"]
[Round "2.6"]
[White "Velpula Sarayu"]
[Black "Adyasha, Pattnaik"]
[Result "1-0"]
[ECO "B01"]
[WhiteElo "2389"]
[BlackElo "1654"]
[Annotator "ChessBase"]
[PlyCount "59"]
[EventDate "2024.03.28"]
[EventType "team-tourn"]
[EventCountry "IND"]
[SourceTitle "playchess.com"]
[Source "ChessBase"]
[SourceQuality "1"]
[TimeControl "5400+30"]

1. e4 {[%emt 0:00:27]} d5 {[%emt 0:00:55]} 2. exd5 {[%emt 0:00:30]} Qxd5 {[%emt 0:00:55]} 3. Nc3 {[%emt 0:00:29]} Qd8 {[%emt 0:01:23]} 4. d4 {[%emt 0:01:34]} Nf6 {[%emt 0:01:00]} 5. Nf3 {[%emt 0:02:34]} Bg4 {[%emt 0:01:44]} 6. Be2 {[%emt 0:04:49]} e6 {[%emt 0:02:24]} 7. O-O {[%emt 0:05:38]} c6 {[%emt 0:03:19]} 8. Bf4 {[%emt 0:01:19]} Bd6 {[%emt 0:02:17]} 9. Ne5 {[%emt 0:02:25]} Bxe2 {[%emt 0:03:34]} 10. Qxe2 {[%emt 0:00:24]} O-O {[%emt 0:01:10]} 11. Bg3 {[%emt 0:01:21]} Bc7 {[%emt 0:08:16]} 12. Rad1 {[%emt 0:02:43]} Nbd7 {[%emt 0:03:29]} 13. f4 {[%emt 0:04:06]} Nd5 {[%emt 0:07:38]} 14. Ne4 {[%emt 0:05:06]} h6 {[%emt 0:06:47]} 15. Kh1 {[%emt 0:06:10]} Qe7 {[%emt 0:14:24]} 16. c4 {[%emt 0:05:27]} N5b6 {[%emt 0:00:38]} 17. Qe1 {[%emt 0:04:53]} Bd8 {[%emt 0:07:35]} 18. b3 {[%emt 0:06:40]} Rc8 {[%emt 0:05:56]} 19. c5 {[%emt 0:07:21]} Nd5 {[%emt 0:00:58]} 20. Nd6 {[%emt 0:05:03]} Rb8 {[%emt 0:01:00]} 21. f5 {[%emt 0:02:20]} Nxe5 {[%emt 0:02:21]} 22. dxe5 {[%emt 0:00:36]} exf5 {[%emt 0:11:11]} 23. Nxf5 {[%emt 0:01:14]} Qxc5 {[%emt 0:02:13]} 24. e6 {[%emt 0:01:16]} Ra8 {[%emt 0:02:22]} 25. Bd6 {[%emt 0:01:54]} Qb6 {[%emt 0:03:26]} 26. exf7+ {[%emt 0:00:20]} Kh8 {[%emt 0:01:09]} 27. Bxf8 {[%emt 0:00:09]} Bf6 {[%emt 0:00:19]} 28. Bxg7+ {[%emt 0:00:18]} Bxg7 {[%emt 0:00:52]} 29. Qe8+ {[%emt 0:00:18]} Rxe8 {[%emt 0:00:39]} 30. fxe8=Q+ {[%emt 0:00:11]} 1-0

[Event "21st Indian-chT Women 2023-24"]
[Site "Dharamsala"]
[Date "2024.03.30"]
[Round "2.7"]
[White "Aparajita, Gochhikar"]
[Black "Sai Mahati Alapati"]
[Result "1-0"]
[ECO "B22"]
[WhiteElo "1791"]
[BlackElo "2155"]
[Annotator "ChessBase"]
[PlyCount "91"]
[EventDate "2024.03.28"]
[EventType "team-tourn"]
[EventCountry "IND"]
[SourceTitle "playchess.com"]
[Source "ChessBase"]
[SourceQuality "1"]
[TimeControl "5400+30"]

1. e4 {[%emt 0:00:07]} c5 {[%emt 0:00:21]} 2. c3 {[%emt 0:00:06]} Nf6 {[%emt 0:00:19]} 3. e5 {[%emt 0:00:07]} Nd5 {[%emt 0:00:09]} 4. Nf3 {[%emt 0:00:13]} e6 {[%emt 0:00:17]} 5. d4 {[%emt 0:00:22]} cxd4 {[%emt 0:00:15]} 6. cxd4 {[%emt 0:00:09]} d6 {[%emt 0:00:34]} 7. Bb5+ {[%emt 0:00:39]} Nd7 {[%emt 0:03:35]} 8. O-O {[%emt 0:01:01]} Be7 {[%emt 0:01:22]} 9. Nc3 {[%emt 0:00:53]} Nxc3 {[%emt 0:02:09]} 10. bxc3 {[%emt 0:00:10]} O-O {[%emt 0:01:35]} 11. Bf4 {[%emt 0:01:51]} Nb6 {[%emt 0:16:12]} 12. Rc1 {[%emt 0:02:36]} Nd5 {[%emt 0:05:05]} 13. Bg3 {[%emt 0:01:00]} dxe5 {[%emt 0:04:12]} 14. Nxe5 {[%emt 0:01:31]} Bg5 {[%emt 0:04:28]} 15. Rc2 {[%emt 0:02:54]} f5 {[%emt 0:04:43]} 16. h3 {[%emt 0:03:22]} a6 {[%emt 0:03:38]} 17. Bd3 {[%emt 0:03:13]} b5 {[%emt 0:03:32]} 18. Nc6 {[%emt 0:04:41]} Qe8 {[%emt 0:03:52]} 19. Nb4 {[%emt 0:00:27]} Bb7 {[%emt 0:03:44]} 20. Nxd5 {[%emt 0:08:13]} Bxd5 {[%emt 0:00:42]} 21. c4 {[%emt 0:00:41]} bxc4 {[%emt 0:03:35]} 22. Bxc4 {[%emt 0:00:03]} Bxc4 {[%emt 0:01:34]} 23. Rxc4 {[%emt 0:00:02]} f4 {[%emt 0:01:19]} 24. Bh2 {[%emt 0:00:49]} f3 {[%emt 0:05:00]} 25. gxf3 {[%emt 0:05:38]} Bf4 {[%emt 0:05:29]} 26. d5 {[%emt 0:02:37]} e5 {[%emt 0:03:06]} 27. Bxf4 {[%emt 0:03:32]} exf4 {[%emt 0:00:19]} 28. d6 {[%emt 0:04:17]} Qe6 {[%emt 0:02:02]} 29. Rc7 {[%emt 0:02:05]} Qxh3 {[%emt 0:03:46]} 30. Qd5+ {[%emt 0:06:13]} Kh8 {[%emt 0:00:02]} 31. Rf7 {[%emt 0:16:51]} Qh6 {[%emt 0:03:20]} 32. Rxf8+ {[%emt 0:02:05]} Rxf8 {[%emt 0:00:02]} 33. Re1 {[%emt 0:03:06]} Qg6+ {[%emt 0:01:17]} 34. Kf1 {[%emt 0:00:05]} h6 {[%emt 0:01:23]} 35. d7 {[%emt 0:03:08]} Rd8 {[%emt 0:02:09]} 36. Re6 {[%emt 0:00:14]} Qb1+ {[%emt 0:00:43]} 37. Kg2 {[%emt 0:00:12]} Kh7 {[%emt 0:01:43]} 38. Rxa6 {[%emt 0:07:03]} Qc2 {[%emt 0:01:52]} 39. Rc6 {[%emt 0:00:43]} Qb1 {[%emt 0:00:34]} 40. a4 {[%emt 0:00:51]} Qb4 {[%emt 0:02:14]} 41. Qf5+ {[%emt 0:03:27]} Kg8 {[%emt 0:00:11]} 42. Rc8 {[%emt 0:01:31]} Qe7 {[%emt 0:00:58]} 43. a5 {[%emt 0:00:36]} h5 {[%emt 0:00:19]} 44. a6 {[%emt 0:00:42]} h4 {[%emt 0:00:02]} 45. a7 {[%emt 0:00:44]} h3+ {[%emt 0:00:02]} 46. Kxh3 {[%emt 0:00:38]} 1-0

[Event "21st Indian-chT Women 2023-24"]
[Site "Dharamsala"]
[Date "2024.03.31"]
[Round "3.1"]
[White "Kiran, Manisha Mohanty"]
[Black "Gomes, Mary Ann"]
[Result "1/2-1/2"]
[ECO "B24"]
[WhiteElo "2036"]
[BlackElo "2322"]
[Annotator "RC"]
[PlyCount "62"]
[EventDate "2024.03.28"]
[EventType "team-tourn"]
[EventCountry "IND"]
[SourceTitle "playchess.com"]
[Source "ChessBase"]
[SourceQuality "1"]
[TimeControl "5400+30"]

1. e4 {[%emt 0:00:06]} c5 {[%emt 0:00:06]} 2. Nc3 {[%emt 0:00:26]} Nc6 {[%emt 0:00:07]} 3. g3 {[%emt 0:00:13]} g6 {[%emt 0:00:11]} 4. Bg2 {[%emt 0:00:08]} Bg7 {[%emt 0:00:05]} 5. Nge2 {[%emt 0:00:43]} e6 {[%emt 0:00:13]} 6. d3 {[%emt 0:00:14]} Nge7 {[%emt 0:00:20]} 7. Bg5 {[%emt 0:00:25]} h6 {[%emt 0:01:53]} 8. Be3 {[%emt 0:00:07]} Nd4 {[%emt 0:00:06]} 9. O-O {[%emt 0:01:26]} O-O {[%emt 0:00:17]} 10. a4 {[%emt 0:00:12]} Nec6 {[%emt 0:00:13]} 11. Nb5 {[%emt 0:03:06]} d6 {[%emt 0:04:30]} 12. c3 {[%emt 0:04:00]} Nxe2+ {[%emt 0:00:07]} 13. Qxe2 {[%emt 0:00:03]} a6 {[%emt 0:00:13]} 14. Na3 {[%emt 0:00:11]} Rb8 {[%emt 0:00:18]} 15. Qd2 {[%emt 0:00:39]} Kh7 {[%emt 0:00:09]} 16. d4 {[%emt 0:01:55]} cxd4 {[%emt 0:04:47]} 17. cxd4 {[%emt 0:01:48]} d5 {[%emt 0:00:19]} 18. exd5 {[%emt 0:04:10]} exd5 {[%emt 0:00:06]} 19. b4 {[%emt 0:00:04]} Bf5 {[%emt 0:03:30]} 20. b5 {[%emt 0:09:33]} Na5 {[%emt 0:00:11]} 21. Qa2 {[%emt 0:04:31]} axb5 {[%emt 0:05:09]} 22. axb5 {[%emt 0:00:13]} Be6 {[%emt 0:02:37]} 23. Rac1 {[%emt 0:13:07]} Ra8 {[%emt 0:02:28]} 24. Qb2 {[%emt 0:08:30]} Qb6 {[%emt 0:01:53]} 25. h4 {[%emt 0:15:05]} h5 {[%emt 0:03:49]} 26. Rc2 {[%emt 0:09:28]} Bf5 {[%emt 0:05:05]} 27. Rd2 {[%emt 0:03:03]} Rfd8 {[%emt 0:00:48]} 28. Rc1 {[%emt 0:01:40]} Bf8 {[%emt 0:00:50]} 29. Bg5 {[%emt 0:06:50]} Rd7 {[%emt 0:00:29]} 30. Rdd1 {[%emt 0:01:27]} Bg7 {[%emt 0:13:40]} 31. Rd2 {[%emt 0:01:17]} Bf8 {[%emt 0:06:12]} 1/2-1/2

[Event "21st Indian-chT Women 2023-24"]
[Site "Dharamsala"]
[Date "2024.03.31"]
[Round "3.2"]
[White "Mohota, Nisha"]
[Black "Swati Ghate"]
[Result "1/2-1/2"]
[ECO "C45"]
[WhiteElo "2122"]
[BlackElo "2012"]
[Annotator "NA RC"]
[PlyCount "87"]
[EventDate "2024.03.28"]
[EventType "team-tourn"]
[EventCountry "IND"]
[SourceTitle "playchess.com"]
[Source "ChessBase"]
[SourceQuality "1"]
[TimeControl "5400+30"]

1. e4 {[%emt 0:00:17]} e5 {[%emt 0:01:28]} 2. Nf3 {[%emt 0:00:24]} Nc6 {[%emt 0:00:06]} 3. d4 {[%emt 0:00:25]} exd4 {[%emt 0:00:08]} 4. Nxd4 {[%emt 0:00:03]} Bc5 {[%emt 0:00:28]} 5. Nb3 {[%emt 0:00:18]} Bb6 {[%emt 0:01:24]} 6. Nc3 {[%emt 0:00:13]} d6 {[%emt 0:00:21] is currently scoring better than 6...Nf6.} 7. Bf4 {[%emt 0:10:05] C45: Scotch Game.} a5 {[%emt 0:00:35]} 8. a4 {[%emt 0:05:58]} Nge7 {[%emt 0:00:49]} 9. Qd2 {[%emt 0:00:26]} O-O {[%emt 0:04:52]} 10. O-O-O {[%emt 0:01:33]} Be6 {[%emt 0:07:09]} 11. Be3 $146 {[%emt 0:13:50]} ({Predecessor:} 11. Nd5 Ba7 12. Bc4 Ng6 13. Bg5 Qd7 14. f4 Bxd5 15. exd5 Nb4 16. Bb5 c6 17. dxc6 bxc6 18. Qxd6 Qxd6 19. Rxd6 cxb5 {0-1 Perrine,D (2182)-Tari,A (2635) Titled Tuesday intern op 06th Feb Early blitz 2024 (1)}) 11... Bxe3 {[%emt 0:06:12]} 12. Qxe3 {[%emt 0:00:11]} Qc8 {[%emt 0:21:40]} 13. h4 {[%emt 0:12:44]} f5 {[%emt 0:02:52]} 14. h5 {[%emt 0:02:32]} f4 {[%emt 0:08:11]} 15. Qd2 {[%emt 0:03:14]} h6 {[%emt 0:06:30]} 16. Rh4 {[%emt 0:02:49]} f3 $1 {[%emt 0:00:00]} 17. g3 {[%emt 0:10:43]} Ne5 {[%emt 0:05:23]} 18. Nb5 {[%emt 0:04:31]} N7c6 {[%emt 0:04:08]} 19. N3d4 {[%emt 0:02:01]} Bg4 {[%emt 0:03:20]} 20. Qc3 {[%emt 0:06:48]} Kh8 {[%emt 0:09:08]} 21. Kb1 {[%emt 0:00:51]} Qd7 {[%emt 0:02:54]} 22. b3 {[%emt 0:09:15]} Rf6 $14 {[%emt 0:02:06]} 23. Nf5 {[%emt 0:04:28]} Bxf5 {[%emt 0:07:29]} 24. exf5 {[%emt 0:00:03]} Qe7 {[%emt 0:00:49]} 25. Bh3 {[%emt 0:01:20]} Rf7 {[%emt 0:00:53]} 26. Qe3 {[%emt 0:02:09]} Qg5 {[%emt 0:02:33]} 27. Qxg5 {[%emt 0:01:46]} hxg5 {[%emt 0:00:01]} 28. Re4 {[%emt 0:00:09]} Rc8 {[%emt 0:01:37]} 29. f6 {[%emt 0:00:47]} g4 {[%emt 0:00:41]} 30. Bxg4 {[%emt 0:00:43]} Nxg4 {[%emt 0:00:06]} 31. Rxg4 {[%emt 0:00:09]} Rxf6 {[%emt 0:00:01]} 32. Re4 {[%emt 0:01:10]} Ne5 {[%emt 0:00:29]} 33. c4 {[%emt 0:01:02]} b6 {[%emt 0:00:46]} 34. g4 {[%emt 0:01:19]} g6 {[%emt 0:01:17]} 35. Rh1 {[%emt 0:00:30]} gxh5 {[%emt 0:00:33]} 36. Rxh5+ {[%emt 0:00:12]} Kg7 {[%emt 0:00:47]} 37. g5 {[%emt 0:01:17]} Rg6 {[%emt 0:00:02]} 38. Rf4 {[%emt 0:00:54]} Nf7 {[%emt 0:00:54]} 39. Rf5 {[%emt 0:01:20]} Re8 {[%emt 0:00:33]} 40. Rxf3 {[%emt 0:00:22]} Re1+ {[%emt 0:00:28]} 41. Kc2 {[%emt 0:00:04]} Nxg5 {[%emt 0:00:08]} 42. Re3 {[%emt 0:01:22]} Rxe3 {[%emt 0:00:45]} 43. fxe3 {[%emt 0:00:03]} Ne6 {[%emt 0:00:05]} 44. Rh2 {[%emt 0:00:46]} 1/2-1/2

[Event "21st Indian-chT Women 2023-24"]
[Site "Dharamsala"]
[Date "2024.03.31"]
[Round "3.3"]
[White "Anagha Yardi"]
[Black "Soumya, Swaminathan"]
[Result "0-1"]
[ECO "A48"]
[WhiteElo "1482"]
[BlackElo "2259"]
[Annotator "RC"]
[PlyCount "68"]
[EventDate "2024.03.28"]
[EventType "team-tourn"]
[EventCountry "IND"]
[SourceTitle "playchess.com"]
[Source "ChessBase"]
[SourceQuality "1"]
[TimeControl "5400+30"]

1. d4 {[%emt 0:00:05]} Nf6 {[%emt 0:00:02]} 2. Bf4 {[%emt 0:00:20]} g6 {[%emt 0:00:48]} 3. e3 {[%emt 0:00:14]} Bg7 {[%emt 0:00:32]} 4. Nf3 {[%emt 0:00:23]} O-O {[%emt 0:01:44]} 5. c4 {[%emt 0:01:31]} c5 {[%emt 0:01:07]} 6. d5 {[%emt 0:03:12]} Re8 {[%emt 0:11:54]} 7. Nc3 {[%emt 0:01:25]} a6 {[%emt 0:00:25]} 8. h3 {[%emt 0:00:38]} d6 {[%emt 0:19:42]} 9. Be2 {[%emt 0:02:44]} h6 {[%emt 0:00:20]} 10. Qc2 {[%emt 0:00:35]} Bd7 {[%emt 0:04:05]} 11. O-O {[%emt 0:02:21]} b5 {[%emt 0:01:55]} 12. Rad1 {[%emt 0:04:59]} b4 {[%emt 0:08:46]} 13. Na4 {[%emt 0:00:55]} Nh5 {[%emt 0:01:21]} 14. Bh2 {[%emt 0:04:02]} Bxa4 {[%emt 0:00:19]} 15. Qxa4 {[%emt 0:00:09]} Bxb2 {[%emt 0:00:04]} 16. Qb3 {[%emt 0:00:33]} Bg7 {[%emt 0:00:43]} 17. Nd2 {[%emt 0:04:21]} Nf6 {[%emt 0:03:56]} 18. Bd3 {[%emt 0:03:49]} Nbd7 {[%emt 0:00:34]} 19. Nf3 {[%emt 0:00:33]} Qb6 {[%emt 0:04:20]} 20. Qc2 {[%emt 0:01:37]} a5 {[%emt 0:00:33]} 21. Rb1 {[%emt 0:00:40]} a4 {[%emt 0:00:11]} 22. e4 {[%emt 0:01:00]} e6 {[%emt 0:01:47]} 23. Rfe1 {[%emt 0:01:30]} Nh7 {[%emt 0:01:49]} 24. e5 {[%emt 0:02:10]} exd5 {[%emt 0:08:23]} 25. exd6 {[%emt 0:00:16]} Rxe1+ {[%emt 0:00:22]} 26. Rxe1 {[%emt 0:00:10]} b3 {[%emt 0:00:09]} 27. Qb1 {[%emt 0:02:51]} Qb4 {[%emt 0:03:43]} 28. Re7 {[%emt 0:01:35]} Nhf8 {[%emt 0:00:31]} 29. Ne5 {[%emt 0:01:08]} bxa2 {[%emt 0:01:48]} 30. Qxa2 {[%emt 0:00:30]} Qe1+ {[%emt 0:00:03]} 31. Bf1 {[%emt 0:00:13]} Nxe5 {[%emt 0:00:13]} 32. Bxe5 {[%emt 0:00:39]} Bxe5 {[%emt 0:00:03]} 33. cxd5 {[%emt 0:00:32]} a3 {[%emt 0:00:44]} 34. d7 {[%emt 0:00:11]} Bh2+ {[%emt 0:00:09]} 0-1